[Event "*** Titled Tuesday Blitz"]
[Site "Chess.com"]
[Date "2018.07.03"]
[Round "2"]
[White "PowerThinking2650"]
[Black "Ravan_02"]
[Result "0-1"]
[WhiteElo "2308"]
[BlackElo "2472"]
[TimeControl "180+2"]
[EndTime "13:23:27 PDT"]
[Termination "Ravan_02 won by resignation"]

1. e4 {[%clk 0:02:54.1]} 1... g6 {[%clk 0:02:55.9]} 2. d4 {[%clk 0:02:54.1]}
2... Bg7 {[%clk 0:02:57.7]} 3. Nc3 {[%clk 0:02:55]} 3... d6 {[%clk 0:02:58]} 4.
f4 {[%clk 0:02:55.8]} 4... Nf6 {[%clk 0:02:55.6]} 5. Nf3 {[%clk 0:02:56.3]} 5...
O-O {[%clk 0:02:54.9]} 6. e5 {[%clk 0:02:57]} 6... dxe5 {[%clk 0:02:54.8]} 7.
fxe5 {[%clk 0:02:57.4]} 7... Nd5 {[%clk 0:02:54.7]} 8. Bc4 {[%clk 0:02:57.9]}
8... Nb6 {[%clk 0:02:41.8]} 9. Bb3 {[%clk 0:02:58.4]} 9... c5 {[%clk 0:02:42]}
10. dxc5 {[%clk 0:02:39]} 10... Qxd1+ {[%clk 0:02:39]} 11. Nxd1 {[%clk
0:02:39.2]} 11... N6d7 {[%clk 0:02:39.1]} 12. e6 {[%clk 0:01:44.1]} 12... Nxc5
{[%clk 0:02:20.9]} 13. exf7+ {[%clk 0:01:44.6]} 13... Kh8 {[%clk 0:02:22]} 14.
Bc4 {[%clk 0:01:34.8]} 14... Be6 {[%clk 0:02:21.5]} 15. Bxe6 {[%clk 0:01:32.1]}
15... Nxe6 {[%clk 0:02:23.4]} 16. O-O {[%clk 0:01:12]} 16... Rxf7 {[%clk
0:02:23.1]} 17. Re1 {[%clk 0:01:09.3]} 17... Nd4 {[%clk 0:01:51.9]} 18. Nxd4
{[%clk 0:01:06.6]} 18... Bxd4+ {[%clk 0:01:51.5]} 19. Be3 {[%clk 0:01:08.5]}
19... Nc6 {[%clk 0:01:52.6]} 20. c3 {[%clk 0:01:09]} 20... Bg7 {[%clk
0:01:46.3]} 21. Nf2 {[%clk 0:01:06.7]} 21... Rf5 {[%clk 0:01:45.9]} 22. Rad1
{[%clk 0:01:03.6]} 22... Rb5 {[%clk 0:01:39.9]} 23. Re2 {[%clk 0:00:54.7]} 23...
a5 {[%clk 0:01:32.1]} 24. Rdd2 {[%clk 0:00:38.8]} 24... a4 {[%clk 0:01:28.9]}
25. Nd3 {[%clk 0:00:34]} 25... a3 {[%clk 0:01:22.7]} 26. bxa3 {[%clk 0:00:28.7]}
26... Bxc3 {[%clk 0:01:16.4]} 27. Rc2 {[%clk 0:00:28.4]} 27... Rb1+ {[%clk
0:00:58.7]} 28. Kf2 {[%clk 0:00:27.4]} 28... Bg7 {[%clk 0:00:50.1]} 29. Bc5
{[%clk 0:00:20.7]} 29... Nd4 {[%clk 0:00:47.2]} 30. Bxd4 {[%clk 0:00:18.4]}
30... Bxd4+ {[%clk 0:00:49.1]} 31. Kg3 {[%clk 0:00:19.8]} 31... Rxa3 {[%clk
0:00:48.4]} 32. Red2 {[%clk 0:00:17.8]} 32... Be3 {[%clk 0:00:44.8]} 33. Kf3
{[%clk 0:00:13.3]} 33... Bxd2 {[%clk 0:00:44]} 34. Rxd2 {[%clk 0:00:15.2]} 34...
Ra1 {[%clk 0:00:40.4]} 35. Ke4 {[%clk 0:00:15]} 35... R1xa2 {[%clk 0:00:40.9]}
36. Ne5 {[%clk 0:00:16.1]} 36... Rxd2 {[%clk 0:00:40.5]} 0-1

[Event "*** Titled Tuesday Blitz"]
[Site "Chess.com"]
[Date "2018.07.03"]
[Round "2"]
[White "26andrej26"]
[Black "olksuna"]
[Result "0-1"]
[WhiteElo "2397"]
[BlackElo "2439"]
[TimeControl "180+2"]
[EndTime "13:23:28 PDT"]
[Termination "olksuna won by resignation"]

1. e4 {[%clk 0:03:01]} 1... c6 {[%clk 0:02:47.6]} 2. Nc3 {[%clk 0:03:01.5]} 2...
d5 {[%clk 0:02:47.8]} 3. d4 {[%clk 0:03:03.4]} 3... dxe4 {[%clk 0:02:48.6]} 4.
Nxe4 {[%clk 0:03:05.3]} 4... Bf5 {[%clk 0:02:50.1]} 5. Ng3 {[%clk 0:03:06.3]}
5... Bg6 {[%clk 0:02:51.3]} 6. h4 {[%clk 0:03:07]} 6... h6 {[%clk 0:02:52.6]} 7.
Nf3 {[%clk 0:03:08.2]} 7... Nd7 {[%clk 0:02:53.8]} 8. h5 {[%clk 0:03:09.1]} 8...
Bh7 {[%clk 0:02:55.1]} 9. Bd3 {[%clk 0:03:11]} 9... Bxd3 {[%clk 0:02:56]} 10.
Qxd3 {[%clk 0:03:12.9]} 10... e6 {[%clk 0:02:57.5]} 11. Bd2 {[%clk 0:03:13.8]}
11... Ngf6 {[%clk 0:02:58.1]} 12. O-O-O {[%clk 0:03:15]} 12... a5 {[%clk
0:02:56.8]} 13. Qe2 {[%clk 0:03:08.1]} 13... Bb4 {[%clk 0:02:55.7]} 14. Ne5
{[%clk 0:03:02.3]} 14... O-O {[%clk 0:02:52]} 15. f4 {[%clk 0:03:01.1]} 15...
Nd5 {[%clk 0:02:42.2]} 16. f5 {[%clk 0:02:53.4]} 16... Bxd2+ {[%clk 0:02:37.4]}
17. Qxd2 {[%clk 0:02:46.2]} 17... Nxe5 {[%clk 0:02:36.1]} 18. dxe5 {[%clk
0:02:47.1]} 18... exf5 {[%clk 0:02:22]} 19. Nxf5 {[%clk 0:02:29.2]} 19... Re8
{[%clk 0:02:20.6]} 20. Rhf1 {[%clk 0:02:09]} 20... Rxe5 {[%clk 0:02:15.1]} 21.
c4 {[%clk 0:02:09.6]} 21... Qc8 {[%clk 0:01:57]} 22. Nd6 {[%clk 0:01:58.5]}
22... Qe6 {[%clk 0:01:56.2]} 23. Nxf7 {[%clk 0:01:59.5]} 23... Ne3 {[%clk
0:01:34.9]} 24. Nxe5 {[%clk 0:01:59.8]} 24... Nxf1 {[%clk 0:01:35.2]} 25. Qf4
{[%clk 0:01:45.4]} 25... Re8 {[%clk 0:01:31.9]} 26. Re1 {[%clk 0:00:57.7]} 26...
Rf8 {[%clk 0:01:12.4]} 27. Qg4 {[%clk 0:00:52.9]} 27... Qxg4 {[%clk 0:01:06.5]}
28. Nxg4 {[%clk 0:00:54.8]} 28... Rf4 {[%clk 0:01:07.4]} 29. Ne5 {[%clk
0:00:26.6]} 29... Ng3 {[%clk 0:01:07.8]} 30. b3 {[%clk 0:00:20.6]} 30... Nxh5
{[%clk 0:01:07.7]} 31. Nd3 {[%clk 0:00:21.9]} 31... Rg4 {[%clk 0:01:07.1]} 32.
Re5 {[%clk 0:00:21]} 32... Nf6 {[%clk 0:01:05.7]} 33. Rxa5 {[%clk 0:00:21.9]}
33... Rxg2 {[%clk 0:01:06.2]} 34. Nc5 {[%clk 0:00:23.5]} 34... h5 {[%clk
0:01:06.4]} 35. Nxb7 {[%clk 0:00:23.4]} 35... h4 {[%clk 0:01:07.6]} 36. Nd6
{[%clk 0:00:18.8]} 36... h3 {[%clk 0:01:08]} 37. Ra8+ {[%clk 0:00:20]} 37... Kh7
{[%clk 0:01:08.4]} 38. Nf7 {[%clk 0:00:20.8]} 38... h2 {[%clk 0:01:09.4]} 39.
Rh8+ {[%clk 0:00:18.9]} 39... Kg6 {[%clk 0:01:10.4]} 40. Ne5+ {[%clk 0:00:20.2]}
40... Kf5 {[%clk 0:01:11.7]} 41. Nf3 {[%clk 0:00:19.8]} 41... Rg1+ {[%clk
0:01:11.4]} 42. Kd2 {[%clk 0:00:19.9]} 42... h1=Q {[%clk 0:01:12.3]} 43. Rxh1
{[%clk 0:00:20.7]} 43... Rxh1 {[%clk 0:01:13.5]} 44. Nd4+ {[%clk 0:00:22.6]}
44... Ke5 {[%clk 0:01:12.1]} 45. Nxc6+ {[%clk 0:00:24.5]} 45... Kd6 {[%clk
0:01:12.2]} 46. Nd4 {[%clk 0:00:24.1]} 46... Rh2+ {[%clk 0:01:13.1]} 47. Kc3
{[%clk 0:00:25.4]} 47... Rxa2 {[%clk 0:01:13]} 48. Nf5+ {[%clk 0:00:26.4]} 48...
Ke5 {[%clk 0:01:09.4]} 49. Nxg7 {[%clk 0:00:28.3]} 49... Ra7 {[%clk 0:01:09.4]}
0-1

[Event "*** Titled Tuesday Blitz"]
[Site "Chess.com"]
[Date "2018.07.03"]
[Round "2"]
[White "artichaud"]
[Black "LuisFSiles"]
[Result "0-1"]
[WhiteElo "2136"]
[BlackElo "2217"]
[TimeControl "180+2"]
[EndTime "13:23:32 PDT"]
[Termination "LuisFSiles won on time"]

1. d4 {[%clk 0:03:01.9]} 1... f5 {[%clk 0:02:58.4]} 2. g3 {[%clk 0:02:59.4]}
2... Nf6 {[%clk 0:02:56.2]} 3. Bg2 {[%clk 0:03:00.4]} 3... e6 {[%clk 0:02:55.9]}
4. Nh3 {[%clk 0:02:57.2]} 4... d6 {[%clk 0:02:51.1]} 5. Nd2 {[%clk 0:02:56.5]}
5... e5 {[%clk 0:02:44.3]} 6. dxe5 {[%clk 0:02:47.3]} 6... dxe5 {[%clk
0:02:44.7]} 7. O-O {[%clk 0:02:49]} 7... Nc6 {[%clk 0:02:41.3]} 8. Nc4 {[%clk
0:02:47.1]} 8... Bd6 {[%clk 0:02:14.7]} 9. f4 {[%clk 0:02:36.7]} 9... Bc5+
{[%clk 0:01:59.5]} 10. Be3 {[%clk 0:02:30.1]} 10... Qe7 {[%clk 0:01:43.1]} 11.
Qc1 {[%clk 0:01:24.6]} 11... Ng4 {[%clk 0:01:20.9]} 12. Kh1 {[%clk 0:01:08.2]}
12... Nxe3 {[%clk 0:01:14.1]} 13. Nxe3 {[%clk 0:01:06.7]} 13... e4 {[%clk
0:00:55.1]} 14. c3 {[%clk 0:00:53.3]} 14... Be6 {[%clk 0:00:49.9]} 15. b4 {[%clk
0:00:54]} 15... Bb6 {[%clk 0:00:37.1]} 16. a4 {[%clk 0:00:51.8]} 16... a5 {[%clk
0:00:35.4]} 17. b5 {[%clk 0:00:52.5]} 17... Nd8 {[%clk 0:00:33.9]} 18. Rd1
{[%clk 0:00:49.4]} 18... Nf7 {[%clk 0:00:31.3]} 19. Nd5 {[%clk 0:00:47.5]} 19...
Qc5 {[%clk 0:00:31]} 20. Nxb6 {[%clk 0:00:42.4]} 20... cxb6 {[%clk 0:00:26.5]}
21. Ng5 {[%clk 0:00:39.8]} 21... Nxg5 {[%clk 0:00:25.9]} 22. fxg5 {[%clk
0:00:40.7]} 22... O-O {[%clk 0:00:26.9]} 23. Qf4 {[%clk 0:00:31.3]} 23... Rfd8
{[%clk 0:00:22.5]} 24. h4 {[%clk 0:00:26.8]} 24... Bb3 {[%clk 0:00:20.8]} 25.
Rf1 {[%clk 0:00:18.2]} 25... Bc4 {[%clk 0:00:21.5]} 26. Qxf5 {[%clk 0:00:16.9]}
26... Qxf5 {[%clk 0:00:21.7]} 27. Rxf5 {[%clk 0:00:17.7]} 27... Bxe2 {[%clk
0:00:22.9]} 28. Bxe4 {[%clk 0:00:17.9]} 28... Rac8 {[%clk 0:00:23.8]} 29. Bxb7
{[%clk 0:00:16.5]} 29... Rxc3 {[%clk 0:00:23.8]} 30. Re1 {[%clk 0:00:16.2]}
30... Rc2 {[%clk 0:00:19.1]} 31. Bd5+ {[%clk 0:00:15.9]} 31... Kh8 {[%clk
0:00:19.7]} 32. Be4 {[%clk 0:00:09.3]} 32... Rcd2 {[%clk 0:00:20.6]} 33. Rf2
{[%clk 0:00:05.5]} 33... Bg4 {[%clk 0:00:18.9]} 34. Rxd2 {[%clk 0:00:04.3]}
34... Rxd2 {[%clk 0:00:20.5]} 0-1

[Event "*** Titled Tuesday Blitz"]
[Site "Chess.com"]
[Date "2018.07.03"]
[Round "2"]
[White "Polish_fighter3000"]
[Black "pultineviciuspaulius"]
[Result "0-1"]
[WhiteElo "2757"]
[BlackElo "2615"]
[TimeControl "180+2"]
[EndTime "13:23:40 PDT"]
[Termination "pultineviciuspaulius won by resignation"]

1. e4 {[%clk 0:03:01.9]} 1... e5 {[%clk 0:02:59.4]} 2. Nf3 {[%clk 0:03:02.7]}
2... Nc6 {[%clk 0:03:00.9]} 3. Bc4 {[%clk 0:03:04.1]} 3... Bc5 {[%clk
0:02:59.4]} 4. c3 {[%clk 0:03:05]} 4... Nf6 {[%clk 0:03:00]} 5. d3 {[%clk
0:03:06.5]} 5... a6 {[%clk 0:02:59.5]} 6. Bb3 {[%clk 0:03:06.7]} 6... d6 {[%clk
0:03:00.4]} 7. Nbd2 {[%clk 0:03:05.6]} 7... h6 {[%clk 0:03:00.6]} 8. Nf1 {[%clk
0:03:06.3]} 8... O-O {[%clk 0:03:00.4]} 9. h3 {[%clk 0:03:06.7]} 9... Re8 {[%clk
0:03:00.7]} 10. Qe2 {[%clk 0:03:06.3]} 10... Ba7 {[%clk 0:03:01.6]} 11. g4
{[%clk 0:03:07.3]} 11... Be6 {[%clk 0:02:10.2]} 12. Ng3 {[%clk 0:03:01.4]} 12...
Nd7 {[%clk 0:02:00.5]} 13. g5 {[%clk 0:02:49.9]} 13... Bxb3 {[%clk 0:01:49.1]}
14. axb3 {[%clk 0:02:51.8]} 14... hxg5 {[%clk 0:01:45.7]} 15. Nxg5 {[%clk
0:02:53.7]} 15... f6 {[%clk 0:01:39.7]} 16. h4 {[%clk 0:02:43.2]} 16... fxg5
{[%clk 0:01:27.7]} 17. hxg5 {[%clk 0:02:45.1]} 17... g6 {[%clk 0:01:28.8]} 18.
Rh6 {[%clk 0:02:24.6]} 18... Nf8 {[%clk 0:01:29.8]} 19. Qg4 {[%clk 0:02:23.8]}
19... Re7 {[%clk 0:01:26]} 20. Nh5 {[%clk 0:01:54.8]} 20... gxh5 {[%clk
0:01:24.4]} 21. Qxh5 {[%clk 0:01:56.7]} 21... Rh7 {[%clk 0:01:09.7]} 22. f4
{[%clk 0:01:33]} 22... Rxh6 {[%clk 0:01:05.2]} 23. gxh6 {[%clk 0:01:32.1]} 23...
Qf6 {[%clk 0:00:55.7]} 24. f5 {[%clk 0:01:31.5]} 24... Qf7 {[%clk 0:00:54.2]}
25. Qh3 {[%clk 0:01:17.5]} 25... Kh7 {[%clk 0:00:54.1]} 26. Bg5 {[%clk
0:01:05.4]} 26... Nd7 {[%clk 0:00:54.7]} 27. f6 {[%clk 0:01:00]} 27... Rg8
{[%clk 0:00:48.8]} 28. Qf5+ {[%clk 0:01:00.3]} 28... Rg6 {[%clk 0:00:47.3]} 29.
O-O-O {[%clk 0:00:59.1]} 29... Nd8 {[%clk 0:00:48.1]} 30. d4 {[%clk 0:00:54]}
30... Ne6 {[%clk 0:00:46.8]} 31. Bh4 {[%clk 0:00:54.5]} 31... exd4 {[%clk
0:00:42.5]} 32. Rg1 {[%clk 0:00:36.2]} 32... Ne5 {[%clk 0:00:40]} 33. Rg3 {[%clk
0:00:31.3]} 33... dxc3 {[%clk 0:00:39.7]} 34. bxc3 {[%clk 0:00:33.2]} 34... Nc5
{[%clk 0:00:35.3]} 35. c4 {[%clk 0:00:30.4]} 35... a5 {[%clk 0:00:31]} 36. Kb2
{[%clk 0:00:30.7]} 36... Ne6 {[%clk 0:00:30]} 37. Ka3 {[%clk 0:00:29]} 37...
Bc5+ {[%clk 0:00:30.7]} 38. Ka2 {[%clk 0:00:28.5]} 38... b6 {[%clk 0:00:31.6]}
39. Rg2 {[%clk 0:00:21.7]} 39... a4 {[%clk 0:00:32.1]} 40. bxa4 {[%clk
0:00:22.1]} 40... Nd4 {[%clk 0:00:33.5]} 41. Rxg6 {[%clk 0:00:18.8]} 41... Nxf5
{[%clk 0:00:33.3]} 0-1

[Event "*** Titled Tuesday Blitz"]
[Site "Chess.com"]
[Date "2018.07.03"]
[Round "2"]
[White "maheswaran26"]
[Black "dinesh501"]
[Result "0-1"]
[WhiteElo "1965"]
[BlackElo "1777"]
[TimeControl "180+2"]
[EndTime "13:23:54 PDT"]
[Termination "dinesh501 won on time"]

1. Nf3 {[%clk 0:02:59.6]} 1... Nf6 {[%clk 0:02:59.2]} 2. d4 {[%clk 0:02:58.8]}
2... d5 {[%clk 0:02:59.6]} 3. c4 {[%clk 0:02:59.4]} 3... c6 {[%clk 0:03:00.9]}
4. Nc3 {[%clk 0:02:59.8]} 4... dxc4 {[%clk 0:03:01]} 5. a4 {[%clk 0:02:59.6]}
5... Bf5 {[%clk 0:03:01.4]} 6. e3 {[%clk 0:02:59.4]} 6... e6 {[%clk 0:03:01.5]}
7. Bxc4 {[%clk 0:02:59.9]} 7... Bb4 {[%clk 0:02:57.7]} 8. O-O {[%clk 0:02:59.9]}
8... O-O {[%clk 0:02:57.5]} 9. Qe2 {[%clk 0:03:00.4]} 9... Bg6 {[%clk
0:02:54.4]} 10. Ne5 {[%clk 0:02:54.2]} 10... Bh5 {[%clk 0:02:52.3]} 11. Qc2
{[%clk 0:02:38.4]} 11... Nbd7 {[%clk 0:02:51.6]} 12. Qb3 {[%clk 0:02:37.7]}
12... a5 {[%clk 0:02:49.2]} 13. Nd3 {[%clk 0:02:33.5]} 13... Bd6 {[%clk
0:02:48]} 14. Qxb7 {[%clk 0:02:22]} 14... Rb8 {[%clk 0:02:48.5]} 15. Qxc6 {[%clk
0:02:19]} 15... Rb6 {[%clk 0:02:45.7]} 16. Qxb6 {[%clk 0:01:35.3]} 16... Nxb6
{[%clk 0:02:42.2]} 17. Ba2 {[%clk 0:01:35.3]} 17... Bb4 {[%clk 0:02:35.2]} 18.
Nxb4 {[%clk 0:01:30.4]} 18... axb4 {[%clk 0:02:37.1]} 19. a5 {[%clk 0:01:25]}
19... bxc3 {[%clk 0:02:34.5]} 20. axb6 {[%clk 0:01:24.6]} 20... Qxb6 {[%clk
0:02:35.7]} 21. bxc3 {[%clk 0:01:24.1]} 21... Ra8 {[%clk 0:02:31.5]} 22. c4
{[%clk 0:01:02.4]} 22... Be2 {[%clk 0:02:28]} 23. c5 {[%clk 0:00:59]} 23... Qd8
{[%clk 0:02:24.6]} 24. Re1 {[%clk 0:00:37]} 24... Bc4 {[%clk 0:02:21.4]} 25. Ba3
{[%clk 0:00:37.1]} 25... Rxa3 {[%clk 0:02:16.6]} 26. Bxc4 {[%clk 0:00:37.2]}
26... Rxa1 {[%clk 0:02:11]} 27. Rxa1 {[%clk 0:00:37.7]} 27... g5 {[%clk
0:02:10.8]} 28. h3 {[%clk 0:00:36.5]} 28... Qc7 {[%clk 0:02:10.2]} 29. Bb5
{[%clk 0:00:36.4]} 29... Nd5 {[%clk 0:02:08.7]} 30. Rc1 {[%clk 0:00:27.7]} 30...
Qb7 {[%clk 0:02:02.8]} 31. Bf1 {[%clk 0:00:25]} 31... Qb2 {[%clk 0:02:01.5]} 32.
Rc4 {[%clk 0:00:25]} 32... h5 {[%clk 0:01:58.8]} 33. c6 {[%clk 0:00:24.8]} 33...
Nc7 {[%clk 0:01:59.3]} 34. Rc5 {[%clk 0:00:24.6]} 34... f6 {[%clk 0:01:54.8]}
35. h4 {[%clk 0:00:24.7]} 35... gxh4 {[%clk 0:01:49.7]} 36. Rxh5 {[%clk
0:00:25.1]} 36... Qc1 {[%clk 0:01:49.5]} 37. Rc5 {[%clk 0:00:24.6]} 37... Qb1
{[%clk 0:01:47.8]} 38. Ra5 {[%clk 0:00:21.1]} 38... Kf7 {[%clk 0:01:44.6]} 39.
Rc5 {[%clk 0:00:18.5]} 39... f5 {[%clk 0:01:35.5]} 40. f3 {[%clk 0:00:17.8]}
40... Qe1 {[%clk 0:01:35.6]} 41. Re5 {[%clk 0:00:14.2]} 41... Ke7 {[%clk
0:01:36.3]} 42. e4 {[%clk 0:00:10.4]} 42... Qe3+ {[%clk 0:01:35.6]} 43. Kh1
{[%clk 0:00:08.4]} 43... Qxd4 {[%clk 0:01:37.5]} 44. Ra5 {[%clk 0:00:08.5]}
44... fxe4 {[%clk 0:01:34.2]} 45. fxe4 {[%clk 0:00:08.7]} 45... Qd1 {[%clk
0:01:35.4]} 46. Kg1 {[%clk 0:00:09]} 46... Qe1 {[%clk 0:01:34.3]} 47. Ra2 {[%clk
0:00:06.2]} 47... Kd6 {[%clk 0:01:33.4]} 48. Re2 {[%clk 0:00:05.8]} 48... Qd1
{[%clk 0:01:29.1]} 49. e5+ {[%clk 0:00:04.7]} 49... Kxc6 {[%clk 0:01:29.9]} 50.
Re4 {[%clk 0:00:04.5]} 50... Nd5 {[%clk 0:01:29.8]} 0-1

[Event "*** Titled Tuesday Blitz"]
[Site "Chess.com"]
[Date "2018.07.03"]
[Round "2"]
[White "GM_dmitrij"]
[Black "jk13"]
[Result "1-0"]
[WhiteElo "2811"]
[BlackElo "2558"]
[TimeControl "180+2"]
[EndTime "13:23:57 PDT"]
[Termination "GM_dmitrij won by resignation"]

1. e4 {[%clk 0:03:01.9]} 1... e5 {[%clk 0:03:00.8]} 2. Nf3 {[%clk 0:03:02.5]}
2... Nc6 {[%clk 0:03:02.4]} 3. Bb5 {[%clk 0:03:02.8]} 3... a6 {[%clk 0:03:02.6]}
4. Ba4 {[%clk 0:03:03.6]} 4... Nf6 {[%clk 0:03:04.2]} 5. O-O {[%clk 0:03:04.5]}
5... b5 {[%clk 0:03:05.8]} 6. Bb3 {[%clk 0:03:05]} 6... Bc5 {[%clk 0:03:07.7]}
7. c3 {[%clk 0:03:04]} 7... d6 {[%clk 0:03:09.2]} 8. d4 {[%clk 0:02:51.6]} 8...
Bb6 {[%clk 0:03:10.7]} 9. a4 {[%clk 0:02:52]} 9... Rb8 {[%clk 0:03:11.1]} 10.
axb5 {[%clk 0:02:51.7]} 10... axb5 {[%clk 0:03:13]} 11. Na3 {[%clk 0:02:48.7]}
11... O-O {[%clk 0:03:13.7]} 12. Nxb5 {[%clk 0:02:41.8]} 12... Bg4 {[%clk
0:03:14.7]} 13. d5 {[%clk 0:02:12.9]} 13... Ne7 {[%clk 0:03:15.2]} 14. h3 {[%clk
0:02:12.4]} 14... Bxh3 {[%clk 0:03:05]} 15. gxh3 {[%clk 0:02:05]} 15... Qd7
{[%clk 0:03:06.5]} 16. Kh2 {[%clk 0:01:49.6]} 16... Qxb5 {[%clk 0:03:07.4]} 17.
Bc2 {[%clk 0:01:51.1]} 17... Ng6 {[%clk 0:03:04.3]} 18. Bd3 {[%clk 0:01:41.4]}
18... Qd7 {[%clk 0:03:05.3]} 19. Bg5 {[%clk 0:01:40.1]} 19... Nh5 {[%clk
0:03:04.7]} 20. Nh4 {[%clk 0:01:30.8]} 20... Nxh4 {[%clk 0:02:58.2]} 21. Bxh4
{[%clk 0:01:32.7]} 21... Nf4 {[%clk 0:02:59.8]} 22. Qf3 {[%clk 0:01:32.2]} 22...
f5 {[%clk 0:02:46.1]} 23. Bc2 {[%clk 0:01:14.9]} 23... Ng6 {[%clk 0:02:13.5]}
24. Bg5 {[%clk 0:01:06.9]} 24... fxe4 {[%clk 0:01:55.7]} 25. Qxe4 {[%clk
0:01:07.7]} 25... Bxf2 {[%clk 0:01:42.8]} 26. b4 {[%clk 0:01:03.3]} 26... Bb6
{[%clk 0:01:21.6]} 27. h4 {[%clk 0:00:41.3]} 27... Rxf1 {[%clk 0:01:20.6]} 28.
Rxf1 {[%clk 0:00:43.2]} 28... Rf8 {[%clk 0:01:21.7]} 29. Rxf8+ {[%clk
0:00:38.8]} 29... Nxf8 {[%clk 0:01:23.6]} 30. c4 {[%clk 0:00:26.9]} 30... Bd4
{[%clk 0:01:17.8]} 31. Qf5 {[%clk 0:00:23.6]} 31... h6 {[%clk 0:01:09.3]} 32.
Qxd7 {[%clk 0:00:20.5]} 32... Nxd7 {[%clk 0:01:11.2]} 33. Bd8 {[%clk 0:00:21.8]}
33... Bc3 {[%clk 0:01:04.5]} 34. Bf5 {[%clk 0:00:18.7]} 34... Nf8 {[%clk
0:00:57.4]} 35. b5 {[%clk 0:00:18.9]} 35... Ba5 {[%clk 0:00:58.2]} 36. h5 {[%clk
0:00:20.3]} 36... Kf7 {[%clk 0:00:59]} 37. c5 {[%clk 0:00:18.8]} 37... Ke8
{[%clk 0:00:54.7]} 38. Bxc7 {[%clk 0:00:14.3]} 38... Bxc7 {[%clk 0:00:55.3]} 39.
b6 {[%clk 0:00:16.2]} 39... Kd8 {[%clk 0:00:50.7]} 40. bxc7+ {[%clk 0:00:16.3]}
40... Kxc7 {[%clk 0:00:52.6]} 41. c6 {[%clk 0:00:18.1]} 41... Kd8 {[%clk
0:00:36.5]} 42. Kg3 {[%clk 0:00:19.2]} 42... Kc7 {[%clk 0:00:38.2]} 43. Kf3
{[%clk 0:00:20.8]} 43... Kd8 {[%clk 0:00:39.6]} 44. Ke3 {[%clk 0:00:22.4]} 44...
Kc7 {[%clk 0:00:41.5]} 45. Kd3 {[%clk 0:00:24]} 45... Kb6 {[%clk 0:00:43.2]} 46.
Kc4 {[%clk 0:00:25.3]} 46... Kc7 {[%clk 0:00:42.9]} 47. Kb5 {[%clk 0:00:27.2]}
47... g6 {[%clk 0:00:21.9]} 48. hxg6 {[%clk 0:00:27.8]} 48... Nxg6 {[%clk
0:00:23.5]} 49. Bxg6 {[%clk 0:00:28.9]} 1-0

[Event "*** Titled Tuesday Blitz"]
[Site "Chess.com"]
[Date "2018.07.03"]
[Round "2"]
[White "Alopekos"]
[Black "Fandorine"]
[Result "0-1"]
[WhiteElo "2407"]
[BlackElo "2736"]
[TimeControl "180+2"]
[EndTime "13:24:04 PDT"]
[Termination "Fandorine won by resignation"]

1. e4 {[%clk 0:03:01.9]} 1... c5 {[%clk 0:02:58.9]} 2. Nf3 {[%clk 0:03:02.5]}
2... e6 {[%clk 0:02:59.9]} 3. d4 {[%clk 0:03:03.9]} 3... cxd4 {[%clk 0:03:01.3]}
4. Nxd4 {[%clk 0:03:05.8]} 4... Nc6 {[%clk 0:03:02.7]} 5. Nc3 {[%clk 0:03:06.7]}
5... Qc7 {[%clk 0:03:04.2]} 6. Be3 {[%clk 0:03:07.5]} 6... a6 {[%clk 0:03:05.2]}
7. Be2 {[%clk 0:03:08.8]} 7... Nf6 {[%clk 0:03:05.6]} 8. O-O {[%clk 0:03:08.9]}
8... Be7 {[%clk 0:03:07]} 9. f4 {[%clk 0:03:08.8]} 9... d6 {[%clk 0:03:08.4]}
10. Kh1 {[%clk 0:03:09.8]} 10... O-O {[%clk 0:03:08.5]} 11. Qe1 {[%clk 0:03:11]}
11... Nxd4 {[%clk 0:03:09.8]} 12. Bxd4 {[%clk 0:03:12.3]} 12... b5 {[%clk
0:03:11.4]} 13. a3 {[%clk 0:03:13.1]} 13... Bb7 {[%clk 0:03:12.4]} 14. Qg3
{[%clk 0:03:14.6]} 14... Bc6 {[%clk 0:03:13.7]} 15. e5 {[%clk 0:02:52.4]} 15...
dxe5 {[%clk 0:03:08.9]} 16. Bxe5 {[%clk 0:02:54.3]} 16... Qb7 {[%clk 0:03:09.1]}
17. f5 {[%clk 0:02:55.7]} 17... exf5 {[%clk 0:03:01]} 18. Rxf5 {[%clk
0:02:55.7]} 18... Ne8 {[%clk 0:03:02.1]} 19. Raf1 {[%clk 0:02:42.9]} 19... f6
{[%clk 0:03:02.1]} 20. Bd4 {[%clk 0:02:06.4]} 20... Rf7 {[%clk 0:02:49.8]} 21.
Bh5 {[%clk 0:01:48.5]} 21... g6 {[%clk 0:02:46.1]} 22. R5f2 {[%clk 0:01:48.9]}
22... Ng7 {[%clk 0:02:39.9]} 23. Bg4 {[%clk 0:01:43]} 23... f5 {[%clk
0:02:37.7]} 24. Bf3 {[%clk 0:01:37.6]} 24... Bxf3 {[%clk 0:02:33.5]} 25. Rxf3
{[%clk 0:01:26.3]} 25... Rd8 {[%clk 0:02:29.6]} 26. Rd3 {[%clk 0:01:23.5]} 26...
Nh5 {[%clk 0:02:29.9]} 27. Qf2 {[%clk 0:01:15.9]} 27... Bf8 {[%clk 0:01:52.1]}
28. Rfd1 {[%clk 0:01:12.4]} 28... Rfd7 {[%clk 0:01:51.6]} 29. Be5 {[%clk
0:01:07.4]} 29... Rxd3 {[%clk 0:01:42.7]} 30. Rxd3 {[%clk 0:01:09.3]} 30... Re8
{[%clk 0:01:43.9]} 31. Bd4 {[%clk 0:00:32.4]} 31... Qc6 {[%clk 0:01:01]} 32. Re3
{[%clk 0:00:28.9]} 32... Rd8 {[%clk 0:01:00.2]} 33. Rd3 {[%clk 0:00:28.1]} 33...
Qc4 {[%clk 0:00:53.8]} 34. Qd2 {[%clk 0:00:23.3]} 34... Re8 {[%clk 0:00:45.5]}
35. Bf2 {[%clk 0:00:09.5]} 35... Nf6 {[%clk 0:00:22.5]} 36. h3 {[%clk
0:00:06.2]} 36... Qc7 {[%clk 0:00:11.2]} 37. Nd5 {[%clk 0:00:05]} 37... Nxd5
{[%clk 0:00:12.5]} 38. Rxd5 {[%clk 0:00:06.9]} 38... Qc4 {[%clk 0:00:12.5]} 39.
b3 {[%clk 0:00:02.7]} 39... Qf1+ {[%clk 0:00:12.7]} 40. Kh2 {[%clk 0:00:04.2]}
40... Re2 {[%clk 0:00:13.5]} 41. Qa5 {[%clk 0:00:02.8]} 41... Qxf2 {[%clk
0:00:14.5]} 0-1